[Event "FIDE World Rapid-ch Open 2018"]
[White "Pogosyan, Stefan"]
[Black "Vastrukhin, Oleg"]
[Site "St. Petersburg"]
[Round "9.86"]
[Annotator "NA"]
[Result "0-1"]
[Date "2018.12.27"]
[WhiteElo "2365"]
[BlackElo "2413"]
[PlyCount "106"]
[TimeControl "900+10"]

1. d4 {[%emt 0:0:0]} g6 {[%emt 0:0:0]} 2. c4 {[%emt 0:0:0]} Bg7 {[%emt 0:0:0]} 3. Nf3 {[%emt 0:0:0]} d6 {[%emt 0:0:0]} 4. Nc3 {[%emt 0:0:0]} e5 {[%emt 0:0:2]} 5. g3 {[%emt 0:0:28]} exd4 {[%emt 0:0:23]} 6. Nxd4 {[%emt 0:0:0]} Nc6 {[%emt 0:0:6]} 7. Nxc6 {[%emt 0:0:3]} bxc6 {[%emt 0:0:1]} 8. Bg2 {[%emt 0:0:1]} Ne7 {[%emt 0:0:2]} 9. 0-0 {[%emt 0:0:2]} 0-0 {[%emt 0:0:0]} 10. Qc2 {[%emt 0:1:0]} Rb8 {[%emt 0:0:19]} 11. b3 {[%emt 0:0:7]} Bf5 {[%emt 0:0:12]} 12. e4 {[%emt 0:0:15]} Be6 {[%emt 0:0:1]} 13. Be3 {[%emt 0:3:14]
} c5 {[%emt 0:0:18]} 14. Rad1 {[%emt 0:0:2]} Qc8 {[%emt 0:0:0]} 15. f4 {[%emt 0:1:13]} Nc6 {[%emt 0:3:38]} 16. f5 {[%emt 0:5:5]} Nd4 {[%emt 0:1:8]
} 17. Bxd4 {[%emt 0:1:9]} Bxd4+ {[%emt 0:0:2]} 18. Kh1 {[%emt 0:0:13]
} Bd7 {[%emt 0:0:1]} 19. Nd5 {[%emt 0:0:8]} Qd8 {[%emt 0:0:0]} 20. f6 {[%emt 0:0:27]} Kh8 {[%emt 0:1:31]} 21. Qd2 {[%emt 0:1:55]} Be6 {[%emt 0:0:22]} 22. Ne7 {[%emt 0:0:8]} Qd7 {[%emt 0:2:38]} 23. Qg5 {[%emt 0:0:44]
} Be5 {[%emt 0:1:42]} 24. Rf4 {[%emt 0:1:45]} Bxf4 {[%emt 0:0:0]} 25. gxf4 {[%emt 0:0:1]} Rg8 {[%emt 0:0:26]} 26. Rd3 {[%emt 0:0:11]} Rbe8 {[%emt 0:0:48]} 27. Rg3 {[%emt 0:0:31]} Rxe7 {[%emt 0:1:19]} 28. fxe7 {[%emt 0:0:4]
} Kg7 {[%emt 0:0:33]} 29. f5 {[%emt 0:0:40]} f6 {[%emt 0:0:1]
} 30. Qh4 {[%emt 0:0:13]} Bf7 {[%emt 0:0:43]} 31. Rh3 {[%emt 0:0:9]} h5 {[%emt 0:0:47]
} 32. fxg6 {[%emt 0:0:7]} Bxg6 {[%emt 0:0:2]} 33. Rg3 {[%emt 0:0:18]
} Qxe7 {[%emt 0:0:28]} 34. Qf4 {[%emt 0:0:6]} Qe5 {[%emt 0:0:0]} 35. Qxe5 {[%emt 0:0:16]} fxe5 {[%emt 0:0:7]} 36. Bh3 {[%emt 0:0:9]} Kf6 {[%emt 0:0:6]} 37. Rf3+ {[%emt 0:0:10]} Ke7 {[%emt 0:0:2]} 38. Bf5 {[%emt 0:0:7]
} Bxf5 {[%emt 0:0:22]} 39. Rxf5 {[%emt 0:0:2]} Rg4 {[%emt 0:0:0]} 40. Rxh5 {[%emt 0:0:9]} Rxe4 {[%emt 0:0:1]} 41. Rh7+ {[%emt 0:0:0]} Ke6 {[%emt 0:0:22]} 42. Rxc7 {[%emt 0:0:7]} Re1+ {[%emt 0:0:1]} 43. Kg2 {[%emt 0:0:1]} Re2+ {[%emt 0:0:1]} 44. Kg3 {[%emt 0:0:21]} Rxa2 {[%emt 0:0:1]
} 45. h4 {[%emt 0:0:3]} Ra3 {[%emt 0:0:10]} 46. Rb7 {[%emt 0:0:0]} a5 {[%emt 0:0:1]} 47. Kg4 {[%emt 0:0:1]} a4 {[%emt 0:0:1]} 48. b4 {[%emt 0:0:16]} cxb4 {[%emt 0:0:33]} 49. Rxb4 {[%emt 0:0:1]} Ra1 {[%emt 0:0:0]} 50. Kf3 {[%emt 0:0:27]} a3 {[%emt 0:0:1]} 51. Kg2 {[%emt 0:0:1]} Kf5 {[%emt 0:0:22]} 52. Ra4 {[%emt 0:0:4]} a2 {[%emt 0:0:16]} 53. Kh2 {[%emt 0:0:8]
} e4 {[%emt 0:0:7]} 0-1

[Event "FIDE World Rapid-ch Open 2018"]
[White "Iljiushenok, Ilia"]
[Black "Zakhartsov, Vladimir"]
[Site "St. Petersburg"]
[Round "9.87"]
[Annotator "ChessBase"]
[Result "1/2-1/2"]
[Date "2018.12.27"]
[WhiteElo "2533"]
[BlackElo "2486"]
[PlyCount "103"]
[TimeControl "900+10"]

1. e4 {[%emt 0:0:0]} c5 {[%emt 0:0:0]} 2. Nc3 {[%emt 0:0:0]} Nc6 {[%emt 0:0:6]
} 3. Bb5 {[%emt 0:0:0]} Nd4 {[%emt 0:0:5]} 4. Bc4 {[%emt 0:0:0]} e6 {[%emt 0:0:9]} 5. Nge2 {[%emt 0:0:0]} Ne7 {[%emt 0:0:22]} 6. Nxd4 {[%emt 0:0:8]} cxd4 {[%emt 0:0:2]} 7. Ne2 {[%emt 0:0:2]} Nc6 {[%emt 0:0:4]
} 8. 0-0 {[%emt 0:0:8]} Bc5 {[%emt 0:0:19]} 9. d3 {[%emt 0:0:0]} 0-0 {[%emt 0:0:14]} 10. a3 {[%emt 0:0:2]} a5 {[%emt 0:0:57]} 11. Ng3 {[%emt 0:0:14]
} Ne7 {[%emt 0:0:29]} 12. Ba2 {[%emt 0:1:18]} d5 {[%emt 0:0:0]} 13. Bg5 {[%emt 0:1:59]} h6 {[%emt 0:0:30]} 14. Bxe7 {[%emt 0:0:41]} Bxe7 {[%emt 0:0:4]} 15. exd5 {[%emt 0:0:31]} exd5 {[%emt 0:0:41]} 16. Ne2 {[%emt 0:1:0]
} Bg4 {[%emt 0:1:49]} 17. h3 {[%emt 0:0:2]} Bxe2 {[%emt 0:0:0]} 18. Qxe2 {[%emt 0:0:1]} Qd6 {[%emt 0:0:7]} 19. a4 {[%emt 0:1:13]} Bf6 {[%emt 0:0:50]} 20. Qf3 {[%emt 0:0:12]} Rac8 {[%emt 0:1:15]} 21. Bb3 {[%emt 0:0:17]
} Rfe8 {[%emt 0:0:39]} 22. Rfe1 {[%emt 0:0:44]} Re5 {[%emt 0:0:0]} 23. Rxe5 {[%emt 0:0:32]} Qxe5 {[%emt 0:0:3]} 24. g3 {[%emt 0:0:19]} b6 {[%emt 0:1:5]} 25. h4 {[%emt 0:0:46]} h5 {[%emt 0:1:38]} 26. Kf1 {[%emt 0:0:28]
} g6 {[%emt 0:0:20]} 27. Re1 {[%emt 0:2:41]} Qd6 {[%emt 0:0:0]} 28. Bxd5 {[%emt 0:3:11]} Kg7 {[%emt 0:0:4]} 29. Bc4 {[%emt 0:0:22]} Qd7 {[%emt 0:0:12]} 30. b3 {[%emt 0:0:10]} Rc5 {[%emt 0:0:49]} 31. Kg2 {[%emt 0:0:13]
} Re5 {[%emt 0:1:23]} 32. Rxe5 {[%emt 0:0:20]} Bxe5 {[%emt 0:0:0]} 33. Qe4 {[%emt 0:0:5]} Bf6 {[%emt 0:0:39]} 34. Qa8 {[%emt 0:0:24]} Bd8 {[%emt 0:0:38]} 35. Kg1 {[%emt 0:0:16]} Bf6 {[%emt 0:0:35]} 36. Kg2 {[%emt 0:0:30]
} Bd8 {[%emt 0:0:18]} 37. Bb5 {[%emt 0:0:8]} Qc7 {[%emt 0:0:0]} 38. Qd5 {[%emt 0:0:6]} Bf6 {[%emt 0:0:13]} 39. Bc4 {[%emt 0:0:1]} Kf8 {[%emt 0:1:9]} 40. Kf1 {[%emt 0:0:56]} Kg7 {[%emt 0:0:4]} 41. Ke2 {[%emt 0:0:5]
} Qe5+ {[%emt 0:0:31]} 42. Kf3 {[%emt 0:0:19]} Qxd5+ {[%emt 0:0:0]} 43. Bxd5 {[%emt 0:0:1]} Be7 {[%emt 0:0:1]} 44. Ke4 {[%emt 0:0:10]} f5+ {[%emt 0:0:8]} 45. Kxd4 {[%emt 0:0:53]} Bc5+ {[%emt 0:0:1]} 46. Ke5 {[%emt 0:0:2]
} Bxf2 {[%emt 0:0:2]} 47. Kf4 {[%emt 0:0:1]} Bd4 {[%emt 0:0:0]} 48. Bc6 {[%emt 0:0:11]} Kf6 {[%emt 0:0:12]} 49. Be8 {[%emt 0:0:6]} Bc3 {[%emt 0:0:17]} 50. Ke3 {[%emt 0:0:7]} Be5 {[%emt 0:0:8]} 51. Kf3 {[%emt 0:0:0]
} Bc3 {[%emt 0:0:2]} 52. Bb5 {[%emt 0:0:16]} 1/2-1/2

[Event "FIDE World Rapid-ch Open 2018"]
[White "Shinkevich, Vitaly"]
[Black "Sokolov, Andrei"]
[Site "St. Petersburg"]
[Round "9.88"]
[Annotator "ChessBase"]
[Result "1-0"]
[Date "2018.12.27"]
[WhiteElo "2439"]
[BlackElo "2532"]
[PlyCount "75"]
[TimeControl "900+10"]

1. d4 {[%emt 0:0:0]} d6 {[%emt 0:0:0]} 2. Nf3 {[%emt 0:0:0]} Bg4 {[%emt 0:0:0]
} 3. c4 {[%emt 0:0:0]} Nd7 {[%emt 0:0:0]} 4. Nc3 {[%emt 0:0:0]} e5 {[%emt 0:0:0]} 5. g3 {[%emt 0:0:10]} Ngf6 {[%emt 0:0:24]} 6. Bg2 {[%emt 0:0:3]
} c6 {[%emt 0:0:1]} 7. 0-0 {[%emt 0:0:3]} Be7 {[%emt 0:0:3]
} 8. h3 {[%emt 0:0:39]} Bh5 {[%emt 0:0:18]} 9. Nh4 {[%emt 0:0:11]} Bg6 {[%emt 0:0:13]
} 10. Nxg6 {[%emt 0:0:24]} hxg6 {[%emt 0:0:1]} 11. e3 {[%emt 0:0:9]
} Qc7 {[%emt 0:0:15]} 12. Rb1 {[%emt 0:0:3]} a5 {[%emt 0:0:0]} 13. a3 {[%emt 0:0:11]} 0-0 {[%emt 0:0:8]} 14. b3 {[%emt 0:0:34]} Rfe8 {[%emt 0:0:7]} 15. Bb2 {[%emt 0:0:2]} Bf8 {[%emt 0:0:8]} 16. Qc2 {[%emt 0:0:32]
} exd4 {[%emt 0:1:15]} 17. exd4 {[%emt 0:0:3]} d5 {[%emt 0:0:0]} 18. cxd5 {[%emt 0:0:6]} cxd5 {[%emt 0:0:1]} 19. Qd3 {[%emt 0:0:6]} Qd6 {[%emt 0:1:20]} 20. Bc1 {[%emt 0:0:47]} Rad8 {[%emt 0:2:33]} 21. Bf4 {[%emt 0:4:48]
} Qb6 {[%emt 0:1:16]} 22. b4 {[%emt 0:1:55]} axb4 {[%emt 0:0:0]} 23. axb4 {[%emt 0:0:2]} Nb8 {[%emt 0:1:11]} 24. b5 {[%emt 0:1:17]} Ne4 {[%emt 0:0:53]} 25. Rfc1 {[%emt 0:1:34]} Nxc3 {[%emt 0:1:10]} 26. Rxc3 {[%emt 0:0:15]
} Bd6 {[%emt 0:0:20]} 27. Bd2 {[%emt 0:0:55]} Be7 {[%emt 0:0:0]} 28. Rc2 {[%emt 0:0:3]} Nc6 {[%emt 0:1:12]} 29. Bc3 {[%emt 0:1:10]} Na5 {[%emt 0:1:43]} 30. Ra2 {[%emt 0:0:4]} Nc4 {[%emt 0:0:8]} 31. Re2 {[%emt 0:0:55]
} Qd6 {[%emt 0:1:18]} 32. Rbe1 {[%emt 0:0:4]} Qd7 {[%emt 0:0:0]} 33. h4 {[%emt 0:1:32]} Kf8 {[%emt 0:0:9]} 34. h5 {[%emt 0:0:8]} Qf5 {[%emt 0:0:22]
} 35. Qxf5 {[%emt 0:0:13]} gxf5 {[%emt 0:0:2]} 36. Bh3 {[%emt 0:0:36]
} g6 {[%emt 0:0:39]} 37. h6 {[%emt 0:0:1]} f6 {[%emt 0:0:20]} 38. h7 {[%emt 0:0:19]} 1-0

[Event "FIDE World Rapid-ch Open 2018"]
[White "Apryshko, Gleb"]
[Black "Rechlis, Gad"]
[Site "St. Petersburg"]
[Round "9.89"]
[Annotator "ChessBase"]
[Result "1-0"]
[Date "2018.12.27"]
[WhiteElo "2385"]
[BlackElo "2521"]
[PlyCount "140"]
[TimeControl "900+10"]

1. e4 {[%emt 0:0:0]} c5 {[%emt 0:0:0]} 2. Nf3 {[%emt 0:0:0]} d6 {[%emt 0:0:0]} 3. d4 {[%emt 0:0:0]} cxd4 {[%emt 0:0:0]} 4. Nxd4 {[%emt 0:0:15]} Nf6 {[%emt 0:0:0]} 5. Nc3 {[%emt 0:0:1]} g6 {[%emt 0:0:10]} 6. f3 {[%emt 0:0:9]
} Bg7 {[%emt 0:0:9]} 7. Be3 {[%emt 0:0:1]} 0-0 {[%emt 0:0:0]} 8. Qd2 {[%emt 0:0:1]} Nc6 {[%emt 0:0:1]} 9. 0-0-0 d5 10. Qe1 {[%emt 0:0:0]} e5 {[%emt 0:0:2]} 11. Nxc6 {[%emt 0:0:10]} bxc6 {[%emt 0:0:0]} 12. exd5 {[%emt 0:0:29]} Nxd5 {[%emt 0:0:2]} 13. Bc4 {[%emt 0:0:17]} Be6 {[%emt 0:0:32]
} 14. Kb1 {[%emt 0:0:11]} Re8 {[%emt 0:0:16]} 15. Ne4 {[%emt 0:0:0]} f5 {[%emt 0:0:6]} 16. Ng5 {[%emt 0:0:27]} Bc8 {[%emt 0:0:3]} 17. Bb3 {[%emt 0:1:17]} f4 {[%emt 0:1:46]} 18. Ne4 {[%emt 0:5:50]} fxe3 {[%emt 0:5:45]
} 19. c4 {[%emt 0:0:1]} Be6 {[%emt 0:0:45]} 20. cxd5 {[%emt 0:0:0]} cxd5 {[%emt 0:0:1]} 21. Qxe3 {[%emt 0:0:2]} Kh8 {[%emt 0:1:38]} 22. Qc5 {[%emt 0:0:3]} Bf8 {[%emt 0:2:5]} 23. Qc6 {[%emt 0:2:24]} Rc8 {[%emt 0:0:35]
} 24. Qa6 {[%emt 0:0:1]} Rc7 {[%emt 0:0:23]} 25. Ka1 {[%emt 0:0:0]} Rd7 {[%emt 0:0:16]} 26. Ba4 {[%emt 0:1:0]} dxe4 {[%emt 0:1:5]} 27. Bxd7 {[%emt 0:0:2]} Bxd7 {[%emt 0:0:1]} 28. Qxa7 {[%emt 0:0:0]} Re7 {[%emt 0:0:14]
} 29. fxe4 {[%emt 0:0:11]} Qe8 {[%emt 0:0:4]} 30. Qa5 {[%emt 0:0:31]
} h6 {[%emt 0:2:30]} 31. Rhf1 {[%emt 0:0:15]} Bg7 {[%emt 0:0:0]} 32. Qc5 {[%emt 0:0:18]} Kh7 {[%emt 0:0:11]} 33. Qd6 {[%emt 0:0:25]} Bb5 {[%emt 0:0:22]} 34. Rfe1 {[%emt 0:0:2]} Ra7 {[%emt 0:0:15]} 35. Qc5 {[%emt 0:0:8]
} Ra4 {[%emt 0:0:16]} 36. Rd6 {[%emt 0:0:19]} Qa8 {[%emt 0:0:0]} 37. a3 {[%emt 0:0:7]} Be8 {[%emt 0:0:7]} 38. Re6 {[%emt 0:0:9]} Bf7 {[%emt 0:0:19]} 39. Re7 {[%emt 0:0:2]} Rc4 {[%emt 0:0:5]} 40. Qd6 {[%emt 0:0:18]
} Qxe4 {[%emt 0:0:5]} 41. Rf1 {[%emt 0:0:11]} Qd5 {[%emt 0:0:0]} 42. Qxd5 {[%emt 0:0:16]} Bxd5 {[%emt 0:0:1]} 43. Rd1 {[%emt 0:0:8]} Bc6 {[%emt 0:0:7]} 44. Rc7 e4 {[%emt 0:0:10]} 45. Kb1 {[%emt 0:0:22]} e3 {[%emt 0:0:3]
} 46. Re7 {[%emt 0:0:6]} Be4+ {[%emt 0:0:14]} 47. Ka1 {[%emt 0:0:4]
} e2 {[%emt 0:0:8]} 48. Re1 {[%emt 0:0:1]} Bd3 {[%emt 0:0:0]} 49. R7xe2 {[%emt 0:0:26]} Bxe2 {[%emt 0:0:11]} 50. Rxe2 {[%emt 0:0:0]} g5 {[%emt 0:0:11]} 51. Ka2 {[%emt 0:0:3]} Kg6 {[%emt 0:0:1]} 52. b4 {[%emt 0:0:1]
} Kf5 {[%emt 0:0:8]} 53. b5 {[%emt 0:0:12]} Re4 {[%emt 0:0:0]} 54. Rc2 {[%emt 0:0:13]} Bd4 {[%emt 0:0:10]} 55. Kb3 {[%emt 0:0:14]} Ke5 {[%emt 0:0:11]} 56. a4 {[%emt 0:0:28]} Bb6 {[%emt 0:0:8]} 57. Rc6 {[%emt 0:0:0]} Ba5 {[%emt 0:0:1]} 58. Ra6 {[%emt 0:0:12]} Be1 {[%emt 0:0:4]} 59. b6 {[%emt 0:0:16]} Kd5 {[%emt 0:0:21]} 60. a5 {[%emt 0:0:3]} Kc6 {[%emt 0:0:0]} 61. Ra7 {[%emt 0:0:9]} g4 {[%emt 0:0:9]} 62. g3 {[%emt 0:0:18]} h5 {[%emt 0:0:6]} 63. Kc2 {[%emt 0:0:8]} Ra4 {[%emt 0:0:5]} 64. b7 {[%emt 0:0:0]} Rb4 {[%emt 0:0:22]} 65. a6 {[%emt 0:0:4]} Bf2 {[%emt 0:0:17]} 66. Ra8 {[%emt 0:0:1]} Bc5 {[%emt 0:0:5]} 67. Rc8+ {[%emt 0:0:12]} Kd6 {[%emt 0:0:9]
} 68. b8=Q+ Rxb8 {[%emt 0:0:10]} 69. Rxb8 {[%emt 0:0:18]} Bg1 {[%emt 0:0:1]
} 70. Rb1 {[%emt 0:0:7]} Kd5 1-0

[Event "FIDE World Rapid-ch Open 2018"]
[White "Hirneise, Tobias"]
[Black "Zablotsky, Sergei"]
[Site "St. Petersburg"]
[Round "9.90"]
[Annotator "ChessBase"]
[Result "1/2-1/2"]
[Date "2018.12.27"]
[WhiteElo "2464"]
[BlackElo "2511"]
[PlyCount "96"]
[TimeControl "900+10"]

1. e4 {[%emt 0:0:0]} d6 {[%emt 0:0:0]} 2. d4 {[%emt 0:0:0]} Nf6 {[%emt 0:0:0]} 3. Nc3 {[%emt 0:0:0]} e5 {[%emt 0:0:0]} 4. Nf3 {[%emt 0:0:0]} Nbd7 {[%emt 0:0:0]} 5. Bc4 {[%emt 0:0:0]} Be7 {[%emt 0:0:0]} 6. a4 {[%emt 0:0:0]
} 0-0 {[%emt 0:0:4]} 7. 0-0 {[%emt 0:0:2]} c6 {[%emt 0:0:2]
} 8. Re1 {[%emt 0:0:6]} exd4 {[%emt 0:0:3]} 9. Qxd4 {[%emt 0:0:31]} Ne5 {[%emt 0:0:2]
} 10. Nxe5 {[%emt 0:1:21]} dxe5 {[%emt 0:0:8]} 11. Qxd8 {[%emt 0:0:6]
} Rxd8 {[%emt 0:0:5]} 12. Bg5 {[%emt 0:0:28]} Kf8 {[%emt 0:0:0]} 13. Rad1 {[%emt 0:0:18]} h6 {[%emt 0:0:30]} 14. Bh4 {[%emt 0:0:17]} Rxd1 {[%emt 0:0:32]} 15. Rxd1 {[%emt 0:0:6]} Nh5 {[%emt 0:0:22]} 16. Bxe7+ {[%emt 0:1:21]} Kxe7 {[%emt 0:0:2]} 17. f3 {[%emt 0:0:4]} a5 {[%emt 0:0:0]} 18. Kf2 {[%emt 0:0:7]} Nf6 {[%emt 0:1:17]} 19. Ke3 {[%emt 0:0:11]} Ne8 {[%emt 0:0:7]} 20. g3 {[%emt 0:0:29]} Nd6 {[%emt 0:0:7]} 21. Bd3 {[%emt 0:0:0]} f6 {[%emt 0:1:27]} 22. f4 {[%emt 0:0:22]} Be6 {[%emt 0:0:28]} 23. fxe5 {[%emt 0:0:19]} fxe5 {[%emt 0:0:2]} 24. b3 {[%emt 0:0:39]} Ne8 {[%emt 0:0:53]
} 25. Be2 {[%emt 0:1:46]} Nf6 {[%emt 0:0:3]} 26. Rf1 {[%emt 0:0:0]} Rf8 {[%emt 0:0:6]} 27. Rf2 {[%emt 0:0:33]} Rd8 {[%emt 0:0:30]} 28. Rf1 {[%emt 0:1:5]} Bh3 {[%emt 0:0:6]} 29. Rf2 {[%emt 0:0:42]} Rd4 {[%emt 0:0:26]
} 30. Bf3 {[%emt 0:0:12]} Rd8 {[%emt 0:1:43]} 31. Rd2 {[%emt 0:0:0]} Rf8 {[%emt 0:0:1]} 32. Rf2 {[%emt 0:0:0]} g5 {[%emt 0:0:9]} 33. Be2 {[%emt 0:0:13]} h5 {[%emt 0:0:48]} 34. Nb1 {[%emt 0:0:24]} Rd8 {[%emt 0:0:0]} 35. Nc3 {[%emt 0:1:39]} h4 {[%emt 0:0:44]} 36. gxh4 {[%emt 0:0:22]} gxh4 {[%emt 0:0:2]} 37. Bf3 {[%emt 0:0:12]} Rg8 {[%emt 0:0:21]} 38. Nb1 {[%emt 0:0:7]
} Rg1 {[%emt 0:1:20]} 39. Nd2 {[%emt 0:0:1]} b5 {[%emt 0:0:0]} 40. Kd3 {[%emt 0:2:6]} Rc1 {[%emt 0:2:39]} 41. Kc3 {[%emt 0:0:34]} Ra1 {[%emt 0:2:5]} 42. axb5 {[%emt 0:0:39]} cxb5 {[%emt 0:0:2]} 43. Be2 {[%emt 0:0:4]
} Bd7 {[%emt 0:0:15]} 44. Kb2 {[%emt 0:0:1]} Re1 {[%emt 0:0:0]} 45. Nf3 {[%emt 0:1:4]} Nxe4 {[%emt 0:1:14]} 46. Rg2 {[%emt 0:0:0]} h3 {[%emt 0:0:2]} 47. Nxe1 {[%emt 0:0:25]} hxg2 {[%emt 0:0:1]} 48. Nxg2 {[%emt 0:0:1]
} b4 {[%emt 0:0:10]} 1/2-1/2

[Event "FIDE World Rapid-ch Open 2018"]
[White "Mikhalevski, Victor"]
[Black "Ovchinnikov, Vsevolod"]
[Site "St. Petersburg"]
[Round "9.91"]
[Annotator "ChessBase"]
[Result "0-1"]
[Date "2018.12.27"]
[WhiteElo "2579"]
[BlackElo "2329"]
[PlyCount "110"]
[TimeControl "900+10"]

1. d4 {[%emt 0:0:21]} Nf6 {[%emt 0:0:0]} 2. Bg5 {[%emt 0:0:1]} Ne4 {[%emt 0:0:0]
} 3. Bf4 {[%emt 0:0:1]} c5 {[%emt 0:0:0]} 4. f3 {[%emt 0:0:0]} Qa5+ {[%emt 0:0:4]} 5. c3 {[%emt 0:0:1]} Nf6 {[%emt 0:0:2]} 6. d5 {[%emt 0:0:1]
} Qb6 {[%emt 0:0:3]} 7. Bc1 {[%emt 0:0:2]} e6 {[%emt 0:0:1]
} 8. e4 {[%emt 0:0:7]} exd5 {[%emt 0:0:3]} 9. exd5 {[%emt 0:0:1]} d6 {[%emt 0:0:35]
} 10. Na3 {[%emt 0:0:35]} Be7 {[%emt 0:0:7]} 11. Ne2 {[%emt 0:0:0]} 0-0 {[%emt 0:0:6]} 12. g4 {[%emt 0:0:2]} Re8 {[%emt 0:0:59]} 13. Nc4 {[%emt 0:0:24]} Qc7 {[%emt 0:0:2]} 14. Ng3 {[%emt 0:0:2]} Bf8+ {[%emt 0:0:27]
} 15. Kf2 {[%emt 0:0:6]} b5 {[%emt 0:0:42]} 16. Ne3 {[%emt 0:0:0]} a6 {[%emt 0:7:24]} 17. a4 {[%emt 0:0:12]} bxa4 {[%emt 0:2:0]} 18. Rxa4 {[%emt 0:1:5]} Nfd7 {[%emt 0:0:18]} 19. h4 {[%emt 0:2:41]} Nb6 {[%emt 0:0:5]
} 20. Rf4 {[%emt 0:0:4]} N8d7 {[%emt 0:0:28]} 21. Bd3 {[%emt 0:0:43]
} Ne5 {[%emt 0:0:2]} 22. Bb1 {[%emt 0:0:6]} c4 {[%emt 0:0:0]} 23. Rd4 {[%emt 0:0:53]} g6 {[%emt 0:1:26]} 24. h5 {[%emt 0:2:39]} Bg7 {[%emt 0:1:11]
} 25. Qg1 {[%emt 0:0:6]} Nd3+ {[%emt 0:0:9]} 26. Bxd3 {[%emt 0:0:4]
} cxd3 {[%emt 0:1:54]} 27. Ne4 {[%emt 0:0:19]} Bxd4 {[%emt 0:0:0]} 28. cxd4 {[%emt 0:0:1]} Rxe4 {[%emt 0:0:1]} 29. fxe4 {[%emt 0:0:0]} Nc4 {[%emt 0:0:18]} 30. Kf3 {[%emt 0:3:46]} Nxe3 {[%emt 0:0:22]} 31. Bxe3 {[%emt 0:0:3]} Ra7 {[%emt 0:0:10]} 32. Qg3 {[%emt 0:0:38]} Qc2 {[%emt 0:0:10]
} 33. Qf4 {[%emt 0:1:54]} Qe2+ {[%emt 0:0:10]} 34. Kg3 {[%emt 0:0:1]
} Re7 {[%emt 0:0:9]} 35. Rh2 {[%emt 0:0:41]} Qe1+ {[%emt 0:0:0]} 36. Rf2 {[%emt 0:0:5]} Qg1+ {[%emt 0:0:11]} 37. Rg2 {[%emt 0:0:8]} Qe1+ {[%emt 0:0:1]} 38. Kh3 {[%emt 0:0:21]} Qh1+ {[%emt 0:0:12]} 39. Rh2 {[%emt 0:0:6]
} Qxe4 {[%emt 0:0:4]} 40. Bd2 {[%emt 0:0:24]} gxh5 {[%emt 0:0:0]} 41. Kh4 {[%emt 0:0:28]} Bxg4 {[%emt 0:0:10]} 42. Qg5+ {[%emt 0:0:12]
} Kf8 {[%emt 0:0:2]} 43. Bf4 {[%emt 0:0:2]} Bf5 {[%emt 0:0:18]} 44. Kxh5 {[%emt 0:0:8]
} Bg6+ {[%emt 0:0:8]} 45. Kh6 {[%emt 0:0:3]} Qxd4 {[%emt 0:0:0]} 46. Qg3 {[%emt 0:0:19]} Qg7+ {[%emt 0:0:11]} 47. Kg5 {[%emt 0:0:1]} f6+ {[%emt 0:0:10]} 48. Kh4 {[%emt 0:0:3]} Re4 {[%emt 0:0:5]} 49. Qg4 {[%emt 0:0:11]
} Qe7 {[%emt 0:0:16]} 50. Kg3 {[%emt 0:0:18]} Kf7 {[%emt 0:0:0]} 51. Rh1 {[%emt 0:0:42]} Rc4 {[%emt 0:0:14]} 52. Ra1 {[%emt 0:0:22]} Rc2 {[%emt 0:0:10]} 53. Rxa6 {[%emt 0:0:9]} Qe1+ {[%emt 0:0:3]} 54. Kh3 {[%emt 0:0:6]
} Qh1+ {[%emt 0:0:7]} 55. Kg3 {[%emt 0:0:1]} Rg2+ {[%emt 0:0:0]} 0-1

[Event "FIDE World Rapid-ch Open 2018"]
[White "Gordievsky, Dmitry"]
[Black "Perdomo, Carlos Andres"]
[Site "St. Petersburg"]
[Round "9.92"]
[Annotator "ChessBase"]
[Result "1-0"]
[Date "2018.12.27"]
[WhiteElo "2614"]
[BlackElo "2301"]
[PlyCount "57"]
[TimeControl "900+10"]

1. Nf3 Nf6 2. c4 e6 3. b3 Be7 4. Bb2 b6 5. g3 Bb7 6. Bg2 c5 7. 0-0 d6 8. e3 Nbd7 9. Nc3 a6 10. d4 cxd4 11. exd4 0-0 12. d5 e5 13. Qe2 Ne8 14. b4 f5 15. Nd2 Rc8 16. Rac1 Bf6 17. f3 g6 18. Nb3 Qc7 19. Nb1 b5 20. N1d2 Qb6+ 21. c5 dxc5 22. bxc5 Nxc5 23. Nxc5 Rxc5 24. Qf2 Be7 25. Nb3 Bxd5 26. Nxc5 Bc4 27. Nd7 Qc7 28. Nxe5 Bc5 29. Bd4 1-0

[Event "FIDE World Rapid-ch Open 2018"]
[White "Drygalov, Andrey"]
[Black "Chen, Qi b"]
[Site "St. Petersburg"]
[Round "9.93"]
[Annotator "ChessBase"]
[Result "1-0"]
[Date "2018.12.27"]
[WhiteElo "2481"]
[BlackElo "2437"]
[PlyCount "85"]
[TimeControl "900+10"]

1. Nf3 {[%emt 0:0:1]} Nf6 {[%emt 0:0:0]} 2. c4 {[%emt 0:0:2]} g6 {[%emt 0:0:0]
} 3. g3 {[%emt 0:0:3]} Bg7 {[%emt 0:0:0]} 4. Bg2 {[%emt 0:0:0]} 0-0 {[%emt 0:0:0]} 5. 0-0 {[%emt 0:0:2]} c6 {[%emt 0:0:2]} 6. d4 {[%emt 0:0:3]
} d5 {[%emt 0:0:2]} 7. Nbd2 {[%emt 0:0:1]} a5 {[%emt 0:0:6]
} 8. b3 {[%emt 0:1:55]} Bf5 {[%emt 0:0:50]} 9. Bb2 {[%emt 0:0:12]} Ne4 {[%emt 0:0:44]
} 10. Nh4 {[%emt 0:0:4]} Nxd2 {[%emt 0:0:13]} 11. Qxd2 {[%emt 0:0:1]
} Be6 {[%emt 0:0:7]} 12. f4 {[%emt 0:0:1]} dxc4 {[%emt 0:0:0]} 13. f5 {[%emt 0:0:4]} gxf5 {[%emt 0:0:1]} 14. bxc4 {[%emt 0:0:21]} Nd7 {[%emt 0:0:45]} 15. Nxf5 {[%emt 0:0:23]} Bxf5 {[%emt 0:0:30]} 16. Rxf5 {[%emt 0:0:2]
} e6 {[%emt 0:0:11]} 17. Rf2 {[%emt 0:0:39]} Rc8 {[%emt 0:0:0]} 18. Rc1 {[%emt 0:2:50]} h6 {[%emt 0:1:37]} 19. e3 {[%emt 0:0:42]} Qg5 {[%emt 0:0:25]
} 20. Rcf1 {[%emt 0:1:59]} b6 {[%emt 0:0:2]} 21. Qe2 {[%emt 0:0:0]} c5 {[%emt 0:1:51]} 22. Rf4 {[%emt 0:0:15]} f5 {[%emt 0:0:6]} 23. g4 {[%emt 0:1:55]} Kh8 {[%emt 0:1:23]} 24. gxf5 {[%emt 0:0:14]} exf5 {[%emt 0:0:0]} 25. R1f3 {[%emt 0:1:30]} Rce8 {[%emt 0:0:24]} 26. Qf2 {[%emt 0:0:28]
} cxd4 {[%emt 0:0:2]} 27. exd4 {[%emt 0:0:4]} Qg6 {[%emt 0:0:26]} 28. Rg3 {[%emt 0:0:40]} Qf7 {[%emt 0:0:1]} 29. Bd5 {[%emt 0:0:26]} Qh5 {[%emt 0:0:0]} 30. Bf3 {[%emt 0:1:35]} Qf7 {[%emt 0:0:1]} 31. Ba3 {[%emt 0:0:16]} Qxc4 {[%emt 0:0:22]} 32. Bxf8 {[%emt 0:0:4]} Rxf8 {[%emt 0:0:15]} 33. Bg2 {[%emt 0:0:33]
} b5 {[%emt 0:0:33]} 34. Bf1 {[%emt 0:0:4]} Qd5 {[%emt 0:0:0]} 35. Bd3 {[%emt 0:0:51]} Rc8 {[%emt 0:0:41]} 36. Rxf5 {[%emt 0:0:33]} Rc1+ {[%emt 0:0:44]} 37. Bf1 {[%emt 0:0:2]} Qd6 {[%emt 0:0:5]} 38. Rf4 {[%emt 0:0:47]
} Nf6 {[%emt 0:0:10]} 39. Rgf3 {[%emt 0:0:9]} Nh5 {[%emt 0:0:0]} 40. Rh4 {[%emt 0:0:16]} Rd1 {[%emt 0:0:13]} 41. Kh1 {[%emt 0:0:18]} Qd5 {[%emt 0:0:10]} 42. Qe2 {[%emt 0:0:12]} Rxd4 {[%emt 0:0:48]} 43. Rxh5 {[%emt 0:0:13]
} 1-0